bitfinex-derivatives/quotes_ETHF0:USTF0_20250320
["timestamp","ask_amount","ask_price","bid_price","bid_amount"]
[1742434352145,1.32,2029.5,2029.4,0.78823]
[1742434352543,3.21518807,2029.6,2029.5,0.78819]
[1742434353842,4.52578807,2029.6,2029.5,0.78819]
[1742434354844,1.31798807,2029.6,2029.5,0.78819]
[1742434355442,0.00738807,2029.6,2029.5,2.08399]
[1742434355953,0.00738807,2029.6,2029.5,5.55699]
[1742434356351,0.00738807,2029.6,2029.5,2.08399]
[1742434356652,3.21518807,2029.6,2029.3,0.78825]
[1742434356852,3.46011,2029.5,2029.2,4.78218807]
[1742434357048,1.2885,2029.4,2029.3,0.78827]
[1742434357552,1.2885,2029.4,2029.3,2.08407]
[1742434361854,0.00738807,2029.6,2029.5,0.78819]
[1742434362056,0.00738807,2029.6,2029.5,4.25219]
[1742434362245,8.07e-06,2029.6,2029.5,4.25219]
[1742434362441,8.07e-06,2029.6,2029.5,5.56579]
[1742434362848,8.07e-06,2029.6,2029.5,46.36579]
[1742434365548,8.07e-06,2029.6,2029.5,46.7382756]
[1742434366156,8.07e-06,2029.6,2029.5,49.2382756]
[1742434368655,8.07e-06,2029.6,2029.5,43.2742756]
[1742434368866,8.07e-06,2029.6,2029.5,46.7252756]
[1742434369658,8.07e-06,2029.6,2029.5,5.9252756]
[1742434369859,8.07e-06,2029.6,2029.5,5.9262756]
[1742434370355,8.07e-06,2029.6,2029.5,2.4742756]
[1742434370556,8.07e-06,2029.6,2029.5,5.55179]
[1742434374360,8.07e-06,2029.6,2029.5,5.92457853]
[1742434374661,8.07e-06,2029.6,2029.5,8.42457853]
[1742434374866,8.07e-06,2029.6,2029.5,49.22457853]
[1742434375469,8.07e-06,2029.6,2029.5,55.18457853]
[1742434377460,8.07e-06,2029.6,2029.5,51.73457853]
[1742434377660,8.07e-06,2029.6,2029.5,55.17457853]
[1742434378272,3.2078,2030.3,2030.2,0.78792]
[1742434378970,3.2078,2030.3,2030.1,4.23994]
[1742434378971,4.5815,2030.3,2030.1,4.23994]
[1742434379172,2.0114,2030.2,2030.1,4.23994]
[1742434379366,2.0114,2030.2,2030.1,0.78794]
[1742434379971,2.0114,2030.2,2029.9,6.6598]
[1742434380170,2.0114,2030.2,2030.0,0.788]
[1742434380171,1.3505,2030.1,2030.0,0.788]
[1742434380371,1.3505,2030.1,2029.9,3.2078]
[1742434380372,2.13847,2030.1,2029.9,3.2078]
[1742434380570,0.7017,2030.0,2029.9,3.2078]
[1742434380771,2.0522,2030.0,2029.9,0.78804]
[1742434380972,8.71,2030.0,2029.5,44.0078]
[1742434381277,0.78812,2029.7,2029.5,3.99597]
[1742434381477,1.3022,2029.6,2029.2,3.21518807]
[1742434381671,0.7882,2029.5,2029.2,3.21518807]
[1742434381872,2.6527,2029.6,2029.3,0.78827]
[1742434381873,1.3505,2029.4,2029.3,0.78827]
[1742434383073,1.3505,2029.4,2029.3,2.15827]
[1742434384779,1.3022,2029.6,2029.5,0.78819]
[1742434385373,1.3022,2029.6,2029.4,1.37]
[1742434385579,2.09037,2029.6,2029.4,0.7882]
[1742434386178,1.3126,2029.5,2029.4,0.7882]
[1742434386369,2.10079,2029.5,2029.2,48.81188807]
[1742434386569,1.3126,2029.5,2029.4,0.78823]
[1742434386782,2.10079,2029.5,2029.3,0.78824]
[1742434386984,1.3126,2029.5,2029.2,47.46718807]
[1742434387279,1.3126,2029.5,2029.3,0.78825]
[1742434387280,1.3126,2029.4,2029.3,0.78825]
[1742434389469,0.78827,2029.3,2029.2,0.00738807]
[1742434389671,8.99103,2029.4,2028.9,3.99622]
[1742434389873,0.78839,2029.0,2028.9,3.2078]
[1742434390068,0.78847,2028.8,2028.6,0.78851]
[1742434390274,1.46842,2028.7,2028.5,0.78855]
[1742434390479,1.3085,2028.6,2028.5,0.78855]
[1742434390673,1.3085,2028.6,2028.3,4.8257]
[1742434390674,1.3085,2028.6,2028.4,40.8]
[1742434390980,1.3085,2028.6,2028.3,0.00738807]
[1742434390981,0.78862,2028.4,2028.3,0.79603807]
[1742434391284,4.24161,2028.5,2028.4,0.78862]
[1742434391478,3.453,2028.5,2028.4,0.78862]
[1742434391969,0.78862,2028.4,2028.3,0.79603807]
[1742434392173,2.78182,2028.4,2028.3,0.00738807]
[1742434392576,0.78867,2028.3,2028.1,0.78874]
[1742434392781,1.3247,2028.2,2028.1,0.78874]
[1742434393575,1.3247,2028.2,2028.1,3.99654]
[1742434393774,0.6685,2028.4,2028.3,0.78866]
[1742434395885,1.3548,2028.4,2028.2,0.78868]
[1742434396185,1.3871,2028.3,2028.2,0.78868]
[1742434397481,1.3871,2028.3,2028.1,4.5835]
[1742434397482,2.17577,2028.3,2028.1,4.5835]
[1742434397686,0.7887,2028.2,2028.1,3.2078]
[1742434397984,2.1835,2028.2,2028.1,3.2078]
[1742434398584,0.78878,2028.0,2027.9,0.00738807]
[1742434398881,3.32645,2028.4,2028.0,0.78878]
[1742434398882,1.3948,2028.1,2028.0,0.78878]
[1742434399084,1.3548,2028.4,2028.3,0.78866]
[1742434399478,0.78877,2028.1,2027.9,0.00738807]
[1742434399675,2.14758,2028.0,2027.9,0.00738807]
[1742434400288,11.2136,2028.0,2027.5,3.2078]
[1742434400491,3.2078,2027.6,2027.5,0.78897]
[1742434400679,6.6908,2027.6,2027.5,0.78897]
[1742434400987,6.6928,2027.9,2027.8,0.78885]
[1742434401189,7.9903,2027.9,2027.8,0.78885]
[1742434401376,7.9903,2027.9,2027.4,6.50052]
[1742434401377,10.4903,2027.9,2027.7,0.78888]
[1742434401577,8.77915,2027.9,2027.7,0.78888]
[1742434401781,7.9903,2027.9,2027.6,0.00738807]
[1742434401983,7.9903,2027.9,2027.7,0.78885]
[1742434402191,7.9903,2027.9,2027.8,0.78885]
[1742434402886,7.9903,2027.9,2027.7,1.3626]
[1742434403188,7.9903,2027.9,2027.8,0.78885]
[1742434403984,7.9903,2027.9,2027.7,2.15146]
[1742434404185,1.2801,2027.8,2027.7,2.15146]
[1742434404586,1.2801,2027.8,2027.6,0.00738807]
[1742434404785,0.78889,2027.7,2027.6,0.00738807]
[1742434405690,1.2801,2027.8,2027.6,0.00738807]
[1742434405886,2.06898,2027.8,2027.6,0.00738807]
[1742434406088,2.06898,2027.8,2027.6,0.79628807]
[1742434406293,2.06899,2027.7,2027.6,0.00738807]
[1742434407092,1.2801,2027.7,2027.6,0.79631807]
[1742434407391,2.06899,2027.7,2027.6,0.00738807]
[1742434407596,1.2801,2027.7,2027.6,0.79631807]
[1742434408893,3.2078,2027.9,2027.8,0.78885]
[1742434410194,5.27881,2027.9,2027.7,2.79306]
[1742434410394,1.2822,2027.8,2027.7,2.79306]
[1742434411806,3.2078,2027.9,2027.8,0.78885]
[1742434412006,3.2078,2027.9,2027.8,2.14195]
[1742434412498,0.78889,2027.7,2027.6,0.00738807]
[1742434412903,4.28689,2027.7,2027.6,0.79631807]
[1742434413110,5.57369,2027.7,2027.6,0.79631807]
[1742434413410,4.7848,2027.7,2027.6,0.79631807]
[1742434413598,5.57369,2027.7,2027.6,0.00738807]
[1742434413906,4.7848,2027.7,2027.6,0.79631807]
[1742434414106,4.7848,2027.7,2027.6,2.17691807]
[1742434414601,1.2868,2027.7,2027.6,2.17691807]
[1742434416617,1.2868,2027.7,2027.6,0.00738807]
[1742434416915,3.7868,2027.7,2027.2,0.80177946]
[1742434417106,3.2078,2027.4,2027.2,0.01269946]
[1742434417418,3.2078,2027.4,2027.2,0.80175946]
[1742434417621,3.2078,2027.4,2027.3,1.3097]
[1742434417806,3.99681,2027.4,2027.2,0.01269946]
[1742434418213,0.78905,2027.3,2027.2,0.01269946]
[1742434418417,4.1704,2027.3,2027.2,0.01269946]
[1742434418611,4.95945,2027.3,2027.2,0.01269946]
[1742434420517,4.1704,2027.3,2027.2,0.01269946]
[1742434420714,3.2078,2027.4,2027.2,0.01269946]
[1742434420916,3.517,2027.8,2027.6,0.78892]
[1742434421117,1.2979,2027.9,2027.8,0.78885]
[1742434421614,1.2979,2027.9,2027.7,2.06696]
[1742434421816,2.08672,2027.9,2027.7,2.06696]
[1742434422024,1.2979,2027.9,2027.7,2.06696]
[1742434422226,1.2979,2027.9,2027.8,1.2816]
[1742434422724,1.2979,2027.9,2027.8,2.07045]
[1742434422922,3.2078,2028.0,2027.9,0.78881]
[1742434423222,3.2078,2028.0,2027.9,1.2816]
[1742434423923,3.99658,2028.0,2027.9,1.2816]
[1742434424323,3.99658,2028.0,2027.5,44.0078]
[1742434424524,3.2078,2028.0,2027.8,1.2816]
[1742434424826,0.00738807,2028.1,2028.0,0.78878]
[1742434425527,0.00738807,2028.1,2028.0,2.12248]
[1742434426828,7.3589,2028.6,2028.5,0.78858]
[1742434427029,7.3589,2028.6,2028.4,0.7886]
[1742434427218,3.8559,2028.6,2028.4,0.7886]
[1742434427417,3.8559,2028.6,2028.5,2.12228]
[1742434427620,3.8559,2028.6,2028.5,1.3337]
[1742434428828,4.64444,2028.6,2028.5,1.3337]
[1742434429425,3.8559,2028.6,2028.5,1.3337]
[1742434429920,3.8559,2028.6,2028.3,0.68018807]
[1742434429921,3.8559,2028.6,2028.3,0.00738807]
[1742434430123,0.78859,2028.5,2028.3,1.29768807]
[1742434430322,0.78862,2028.4,2028.3,0.00738807]
[1742434430726,3.8559,2028.6,2028.3,0.79602807]
[1742434430927,4.64446,2028.6,2028.3,0.79602807]
[1742434431128,4.64446,2028.6,2028.4,1.3919]
[1742434431328,4.64447,2028.6,2028.4,1.3919]
[1742434431629,3.8559,2028.6,2028.4,2.1805]
[1742434431821,3.8559,2028.6,2028.5,0.78858]
[1742434432016,3.2078,2028.6,2028.5,2.18048]
[1742434432816,3.2078,2028.6,2028.3,0.00738807]
[1742434433018,3.2078,2028.6,2028.3,2.05398807]
[1742434433222,4.69937,2028.6,2028.3,2.84263807]
[1742434433423,3.9108,2028.6,2028.5,0.78858]
[1742434434128,3.9108,2028.6,2028.4,2.1805]
[1742434434332,0.78858,2028.5,2028.4,1.3919]
[1742434434532,4.69935,2028.6,2028.4,1.3919]
[1742434434927,1.3391,2028.5,2028.4,0.7886]
[1742434435123,1.3391,2028.5,2028.4,0.78862]
[1742434435427,3.2078,2028.6,2028.5,0.78858]
[1742434435928,1.34648807,2028.8,2028.7,0.7885]
[1742434436124,0.00738807,2028.8,2028.7,0.7885]
[1742434436726,0.00738807,2028.8,2028.7,2.8513]
[1742434437433,0.00738807,2028.8,2028.7,6.3553]
[1742434438537,0.00738807,2028.8,2028.7,46.8591]
[1742434439232,0.00738807,2028.8,2028.7,5.2706]
[1742434439432,0.00738807,2028.8,2028.4,3.5]
[1742434439626,0.00738807,2028.8,2028.7,0.7885]
[1742434440627,0.00738807,2028.8,2028.7,2.125]
[1742434440837,0.00738807,2028.8,2028.7,5.645]
[1742434441034,0.00738807,2028.8,2028.7,6.2877]
[1742434441631,0.00738807,2028.8,2028.7,2.125]
[1742434442737,0.00738807,2028.8,2028.7,1.3365]
[1742434442936,0.66188807,2028.8,2028.7,1.3365]
[1742434443137,2.74378807,2028.8,2028.7,1.3365]
[1742434443737,3.53226807,2028.8,2028.6,3.2078]
[1742434443937,1.4138,2028.7,2028.6,3.99634]
[1742434444242,1.4138,2028.7,2028.6,5.39644]
[1742434446037,1.4138,2028.7,2028.6,4.6079]
[1742434446334,1.4138,2028.7,2028.6,5.39644]
[1742434448339,1.4138,2028.7,2028.6,1.4001]
[1742434448534,1.4138,2028.7,2028.6,2.18864]
[1742434449444,1.4138,2028.7,2028.4,4.179]
[1742434449635,1.4138,2028.7,2028.5,1.2979]
[1742434449836,1.4138,2028.7,2028.6,0.78854]
[1742434450036,0.00738807,2028.8,2028.7,0.7885]
[1742434450230,0.00738807,2028.8,2028.7,4.2835]
[1742434450434,0.00738807,2028.8,2028.7,5.5814]
[1742434450631,0.00738807,2028.8,2028.7,46.3814]
[1742434456442,1.2841,2029.2,2029.1,0.78835]
[1742434456640,3.2078,2029.3,2029.2,0.78831]
[1742434458651,3.2078,2029.3,2029.2,1.45181]
[1742434460150,3.99607,2029.3,2029.1,2.12084]
[1742434460344,1.2946,2029.2,2029.1,2.12084]
[1742434460546,1.2946,2029.2,2029.1,0.78834]
[1742434460947,1.2946,2029.2,2029.1,0.78835]
[1742434461949,1.2946,2029.2,2029.0,3.47]
[1742434462156,1.338,2029.1,2028.9,3.2078]
[1742434462347,1.338,2029.0,2028.9,3.99623]
[1742434462953,3.2078,2029.3,2028.9,3.2078]
[1742434463156,2.0055,2029.2,2029.0,1.3864]
[1742434463353,1.338,2029.1,2029.0,0.78837]
[1742434463855,1.338,2029.1,2029.0,2.17477]
[1742434465458,1.338,2029.1,2029.0,0.78837]
[1742434465851,1.338,2029.1,2029.0,2.06677]
[1742434467554,1.338,2029.1,2029.0,0.78837]
[1742434469057,1.338,2029.1,2029.0,2.07797]
[1742434469455,0.7884,2029.0,2028.7,4.1587]
[1742434469657,1.3641,2028.9,2028.8,2.07807]
[1742434471551,0.6675,2029.2,2029.1,0.78835]
[1742434471947,1.3033,2029.2,2029.1,0.78835]
[1742434472151,1.3033,2029.2,2029.1,41.58835]
[1742434472352,1.3033,2029.2,2029.1,43.59445]
[1742434475853,3.2078,2029.3,2029.2,0.78831]
[1742434476053,4.4975,2029.3,2029.2,2.06331]
[1742434477964,4.4975,2029.3,2029.2,0.78831]
[1742434478752,1.2897,2029.3,2029.2,0.78831]
[1742434478959,2.078,2029.3,2029.1,1.4039]
[1742434479155,0.6949,2029.2,2029.1,2.19225]
[1742434479357,2.0335,2029.2,2029.1,2.19225]
[1742434481160,2.0335,2029.2,2029.0,4.24536]
[1742434481361,1.3523,2029.1,2029.0,5.55529]
[1742434483955,3.8472,2029.4,2029.0,4.7669]
[1742434484162,1.3747,2029.3,2029.1,2.76103]
[1742434484857,1.3747,2029.3,2029.1,1.9727]
[1742434485062,0.78836,2029.1,2028.9,3.2078]
[1742434485262,2.0245,2029.0,2028.9,3.99623]
[1742434485557,2.0245,2029.0,2028.9,5.29463]
[1742434486162,2.0245,2029.0,2028.9,4.5062]
[1742434486665,2.0245,2029.0,2028.9,5.29463]
[1742434487666,2.0245,2029.0,2028.7,50.186]
[1742434487858,1.3378,2028.9,2028.7,48.1661]
[1742434488058,1.3378,2028.9,2028.8,1.4061]
[1742434488557,1.3378,2028.9,2028.8,2.19455]
[1742434490858,2.12623,2028.9,2028.8,2.19455]
[1742434493154,1.3378,2028.9,2028.4,0.78861]
[1742434493466,0.78862,2028.4,2028.3,0.00738807]
[1742434493858,3.59262,2028.4,2028.3,0.00738807]
[1742434494766,0.78874,2028.1,2028.0,1.4071]
[1742434494973,0.78883,2027.9,2027.7,0.78888]
[1742434495165,2.08815,2027.8,2027.7,1.3018]
[1742434496070,1.2993,2027.8,2027.7,1.3018]
[1742434496370,1.951,2027.8,2027.7,2.09069]
[1742434496765,1.951,2027.8,2027.7,1.3018]
[1742434497073,1.951,2027.8,2027.5,52.93891218]
[1742434497074,0.78893,2027.7,2027.5,52.93891218]
[1742434497371,1.2993,2027.7,2027.6,0.78893]
[1742434497572,1.2993,2027.7,2027.6,2.09073]
[1742434498566,1.2993,2027.7,2027.6,42.89073]
[1742434500877,3.872,2027.9,2027.6,42.1018]
[1742434501177,4.5133,2027.9,2027.7,1.2971]
[1742434501364,1.3055,2027.8,2027.7,4.7121]
[1742434501675,1.3055,2027.8,2027.7,1.2971]
[1742434501676,2.09435,2027.8,2027.7,1.2971]
[1742434502265,1.3055,2027.8,2027.5,0.68108807]
[1742434502468,3.99673,2027.6,2027.5,0.00738807]
[1742434502676,0.78898,2027.5,2027.3,1.2971]
[1742434502870,2.6831,2027.5,2027.3,2.08615]
[1742434503073,2.6831,2027.5,2027.3,1.2971]
[1742434503272,2.09451,2027.4,2027.2,0.01269946]
[1742434503576,1.3055,2027.3,2027.2,2.09887946]
[1742434504180,1.3776,2027.5,2027.4,0.78901]
[1742434504976,2.16657,2027.5,2027.3,0.78902]
[1742434505276,0.78901,2027.4,2027.2,0.01269946]
[1742434505581,3.2078,2027.3,2027.2,0.01269946]
[1742434505783,3.99685,2027.3,2027.2,0.01269946]
[1742434505971,3.2078,2027.3,2027.2,0.01269946]
[1742434506385,5.34205,2027.3,2027.2,1.37249946]
[1742434506682,4.553,2027.3,2027.2,1.37249946]
[1742434506882,5.34205,2027.3,2027.2,1.37249946]
[1742434507184,5.34205,2027.3,2027.2,0.01269946]
[1742434507681,5.34205,2027.3,2027.2,0.00531139]
[1742434508180,7.84205,2027.3,2027.2,0.00531139]
[1742434509266,7.84205,2027.3,2026.8,2.0087]
[1742434509267,1.97273,2027.2,2026.1,3.2078]
[1742434509471,3.2078,2026.7,2026.2,3.2078]
[1742434509671,2.10132,2026.6,2026.4,0.78939]
[1742434509877,2.10132,2026.6,2026.5,1.3271]
[1742434510273,2.10132,2026.6,2026.3,0.01090545]
[1742434510274,1.966,2026.6,2026.3,0.01090545]
[1742434510483,3.9972,2026.4,2026.3,0.01090545]
[1742434510878,4.482,2026.4,2026.3,0.80034545]
[1742434511074,3.2078,2026.4,2026.3,0.80034545]
[1742434511385,0.78918,2027.0,2026.8,0.78923]
[1742434511577,0.78918,2027.0,2026.9,1.32]
[1742434511977,0.78918,2027.0,2026.9,42.12]
[1742434512380,0.6909,2027.2,2026.9,42.12]
[1742434512580,0.78915,2027.1,2026.9,42.90919]
[1742434512782,0.69828807,2027.2,2027.1,0.78913]
[1742434513083,0.78913,2027.1,2026.9,45.3278]
[1742434513282,0.69828807,2027.2,2026.7,0.00738807]
[1742434513477,0.78916,2027.1,2026.8,2.85341]
[1742434513674,0.78913,2027.1,2026.9,1.3714]
[1742434513870,0.78913,2027.1,2026.9,42.96058]
[1742434514078,0.78917,2027.0,2026.9,42.1714]
[1742434514377,0.7892,2026.9,2026.8,0.6928]
[1742434514579,0.78924,2026.8,2026.7,0.70888807]
[1742434515484,0.78924,2026.8,2026.7,0.00738807]
[1742434515683,3.2078,2027.1,2026.7,0.00738807]
[1742434515982,0.78918,2027.0,2026.7,0.79664807]
[1742434516287,0.78924,2026.8,2026.7,0.00738807]
[1742434516985,0.78924,2026.8,2026.3,0.01090545]
[1742434516986,0.78938,2026.5,2026.3,0.01090545]
[1742434517176,0.78935,2026.6,2026.4,0.7894]
[1742434517382,4.19735,2026.6,2026.4,0.7894]
[1742434517581,4.5319,2026.8,2026.3,0.01090545]
[1742434517889,7.2796,2026.8,2026.7,0.78928]
[1742434518086,3.8726,2026.8,2026.7,0.78928]
[1742434518290,3.2078,2026.8,2026.7,0.78928]
[1742434518684,3.2078,2026.8,2026.7,41.58928]
[1742434519079,3.2078,2026.8,2026.7,42.24688]
[1742434519280,3.2078,2026.8,2026.7,1.44688]
[1742434519678,3.2078,2026.8,2026.7,42.24688]
[1742434519879,4.85346,2027.1,2026.8,0.78924]
[1742434520279,0.78917,2027.0,2026.8,0.78924]
[1742434520592,0.78917,2027.0,2026.7,45.64686]
[1742434520784,0.7892,2026.9,2026.7,45.64686]
[1742434521290,0.78924,2026.8,2026.7,4.0576]
[1742434521589,0.78923,2026.9,2026.7,0.78928]
[1742434521980,0.78926,2026.8,2026.6,1.4481]
[1742434522286,0.78932,2026.6,2026.5,3.2078]
[1742434522486,0.7894,2026.4,2026.3,0.01090545]
[1742434523192,3.409,2026.5,2026.4,0.7894]
[1742434523493,0.78936,2026.5,2026.3,0.01090545]
[1742434523787,1.43604,2026.6,2026.4,0.7894]
[1742434523993,0.6467,2026.6,2026.5,0.78936]
[1742434524181,4.0517,2026.6,2026.5,0.78936]
[1742434524379,0.00738807,2027.2,2026.4,3.8699]
[1742434524684,4.7373,2027.1,2026.9,0.78919]
[1742434524889,4.7373,2027.1,2026.4,3.2078]
[1742434525093,1.3523,2027.0,2026.8,0.78924]
[1742434525485,1.3523,2027.0,2026.5,4.05126]
[1742434525684,1.3523,2027.0,2026.9,0.7892]
[1742434527192,1.3523,2027.0,2026.8,2.18332]
[1742434527584,1.3523,2027.0,2026.9,1.3941]
[1742434527786,1.3523,2027.0,2026.9,2.1833]
[1742434528295,0.6866,2027.1,2027.0,0.78917]
[1742434528491,1.3811,2027.1,2027.0,2.07817]
[1742434528694,1.3811,2027.1,2027.0,5.28597]
[1742434528891,0.00738807,2027.2,2027.1,0.78913]
[1742434529087,0.00738807,2027.2,2027.1,2.17513]
[1742434529591,3.875,2027.6,2027.4,0.78898]
[1742434529592,0.6672,2027.6,2027.4,0.78898]
[1742434529793,2.17009,2027.5,2027.1,1.386]
[1742434529997,2.17009,2027.5,2027.2,0.78905]
[1742434530292,0.78901,2027.4,2027.1,1.386]
[1742434530491,0.78901,2027.4,2027.0,3.99694]
[1742434530492,0.7891,2027.2,2027.0,3.99694]
[1742434530692,1.3811,2027.1,2027.0,3.2078]
[1742434531095,2.0459,2027.1,2027.0,3.2078]
[1742434531302,2.0459,2027.1,2027.0,3.99697]
[1742434531689,2.83503,2027.1,2027.0,3.2078]
[1742434532102,2.0459,2027.1,2027.0,3.99697]
[1742434532299,2.0459,2027.1,2027.0,3.2078]
[1742434532490,2.0459,2027.1,2027.0,3.99697]
[1742434533091,1.3811,2027.1,2027.0,3.99697]
[1742434533290,1.3811,2027.1,2027.0,3.2078]
[1742434533491,1.3811,2027.1,2027.0,3.99697]
[1742434533689,1.3811,2027.1,2027.0,3.2078]
[1742434534090,1.3811,2027.1,2027.0,3.99697]
[1742434534793,1.3811,2027.1,2027.0,3.2078]
[1742434535001,1.3811,2027.1,2027.0,3.99697]
[1742434535194,2.17023,2027.1,2027.0,3.2078]
[1742434535397,2.17023,2027.1,2026.9,0.79656807]
[1742434535600,1.3892,2027.0,2026.9,0.79656807]
[1742434538497,4.55898807,2027.3,2026.9,3.21518807]
[1742434538699,5.88398807,2027.3,2027.2,0.78909]
[1742434538999,3.21518807,2027.3,2027.2,0.78909]
[1742434539302,0.00738807,2027.3,2027.2,3.99689]
[1742434542095,0.6624,2027.9,2027.8,0.78885]
[1742434542304,1.45128,2028.0,2027.8,0.78884]
[1742434542603,1.45129,2028.0,2027.8,0.78885]
[1742434542802,0.6625,2028.0,2027.8,0.78885]
[1742434542999,0.6625,2028.0,2027.9,0.78881]
[1742434543196,3.2078,2028.4,2028.3,0.78866]
[1742434543397,5.96,2028.7,2027.7,1.3245]
[1742434543398,0.00738807,2028.2,2027.9,6.5878]
[1742434543597,0.00738807,2028.2,2027.9,7.3766]
[1742434543794,0.79610807,2028.2,2027.9,7.3766]
[1742434543996,0.6625,2028.1,2028.0,0.78878]
[1742434544905,1.3329,2028.1,2028.0,0.78878]
[1742434545092,0.78881,2028.0,2027.8,0.79621807]
[1742434545297,1.3329,2028.1,2027.8,0.00738807]
[1742434545298,0.78881,2027.9,2027.8,0.00738807]
[1742434545505,0.7888,2028.0,2027.8,0.00738807]
[1742434545696,0.78881,2027.9,2027.8,0.00738807]
[1742434545894,0.78881,2027.9,2027.8,0.79623807]
[1742434546096,0.7888,2028.0,2027.8,0.79623807]
[1742434546497,0.78881,2027.9,2027.8,0.00738807]
[1742434546695,0.78901,2027.4,2027.3,4.4924]
[1742434546905,0.78901,2027.4,2027.3,3.2078]
[1742434547121,0.789,2027.5,2027.3,3.99682]
[1742434547305,0.78901,2027.4,2027.3,3.99682]
[1742434547511,0.78906,2027.3,2027.0,4.5598]
[1742434547697,0.78906,2027.3,2027.2,0.78909]
[1742434548096,0.78904,2027.4,2027.3,0.78905]
[1742434548306,0.78905,2027.3,2027.0,5.8444]
[1742434548509,0.78905,2027.3,2027.2,0.78907]
[1742434548708,0.78903,2027.4,2027.3,0.78905]
[1742434549005,4.15794,2027.6,2027.3,3.2078]
[1742434549211,0.78897,2027.5,2027.4,2.07358]
[1742434549911,4.82866,2027.6,2027.4,2.07358]
[1742434550410,4.0397,2027.6,2027.5,0.78897]
[1742434550612,4.82863,2027.6,2027.4,2.07358]
[1742434551105,0.6972,2027.7,2027.5,1.3861]
[1742434551414,0.6972,2027.7,2027.5,2.17505]
[1742434551811,8.05329,2027.8,2027.6,2.17503]
[1742434552000,8.05329,2027.8,2027.7,1.3861]
[1742434552703,0.78901,2027.4,2027.3,3.2078]
[1742434553313,1.47961,2027.4,2027.3,3.2078]
[1742434555012,2.0969,2027.4,2027.3,3.99685]
[1742434555405,2.88591,2027.4,2027.3,3.2078]
[1742434559116,2.0969,2027.4,2027.3,3.99685]
[1742434559618,2.88591,2027.4,2027.3,3.99685]
[1742434559819,2.88591,2027.4,2027.3,3.2078]
[1742434562521,2.88591,2027.4,2027.3,3.99685]
[1742434562721,2.88591,2027.4,2027.3,5.32305]
[1742434562924,2.88591,2027.4,2027.3,4.534]
[1742434563622,2.0969,2027.4,2027.3,5.32305]
[1742434563818,1.4063,2027.4,2027.3,5.32305]
[1742434567326,2.19531,2027.4,2027.3,5.32305]
[1742434567529,1.4063,2027.4,2027.3,5.32305]
[1742434568625,2.19531,2027.4,2027.3,5.32305]
[1742434568830,1.4063,2027.4,2027.3,5.32305]
[1742434569633,4.81526,2027.6,2027.4,0.78899]
[1742434569817,1.3631,2027.6,2027.5,2.06187]
[1742434570823,4.508,2027.8,2027.7,0.78889]
[1742434571125,5.96738807,2028.2,2027.7,1.97224]
[1742434571330,0.7888,2028.0,2027.8,2.16594]
[1742434571532,0.78877,2028.1,2027.9,2.16591]
[1742434571733,0.78877,2028.1,2028.0,1.3771]
[1742434572830,4.83659807,2028.2,2028.0,2.16586]
[1742434573031,0.78874,2028.1,2028.0,1.3771]
[1742434573442,0.78888,2027.8,2027.6,4.5909]
[1742434573732,0.78888,2027.8,2027.7,1.3208]
[1742434574629,0.78895,2027.6,2027.5,0.78897]
[1742434574836,0.78895,2027.6,2027.4,2.0188]
[1742434575023,0.78897,2027.5,2027.4,2.0188]
[1742434575335,0.78897,2027.5,2027.4,2.80779]
[1742434575533,3.341,2027.6,2027.5,0.78897]
[1742434575728,3.341,2027.6,2027.5,2.10977]
[1742434576127,3.341,2027.8,2027.7,0.78889]
[1742434576322,4.12985,2027.8,2027.6,1.9699]
[1742434576527,3.341,2027.8,2027.7,2.10969]
[1742434577532,0.78883,2027.9,2027.7,2.10966]
[1742434577731,0.78883,2027.9,2027.8,1.3485]
[1742434578836,0.78883,2027.9,2027.8,2.13735]
[1742434579638,9.9858,2028.0,2027.8,2.13735]
[1742434579838,7.43358,2028.0,2027.9,1.3672]
[1742434580041,10.77458,2028.0,2027.9,1.3672]
[1742434580542,9.301,2028.0,2027.9,2.15601]
[1742434580730,3.2078,2028.1,2028.0,0.78878]
[1742434580936,3.2078,2028.1,2028.0,2.15598]
[1742434581132,3.99654,2028.1,2028.0,2.15598]
[1742434581442,3.99654,2028.1,2028.0,1.3672]
[1742434582331,3.99654,2028.1,2028.0,2.15598]
[1742434583045,3.2078,2028.1,2028.0,2.15598]
[1742434583941,3.99654,2028.1,2028.0,1.3672]
[1742434584944,5.40774,2028.1,2028.0,1.3672]
[1742434585145,5.40774,2028.1,2028.0,2.15598]
[1742434586045,5.40774,2028.1,2028.0,1.3672]
[1742434587646,0.78882,2027.9,2027.8,0.78883]
[1742434587837,0.78882,2027.9,2027.8,0.78885]
[1742434588438,3.34,2027.9,2027.3,9.1678]
[1742434588645,0.78895,2027.6,2027.5,0.78896]
[1742434589246,1.324,2027.7,2027.4,2.10468]
[1742434589448,0.78897,2027.5,2027.4,2.10468]
[1742434589946,1.324,2027.7,2027.4,1.3157]
[1742434590146,1.324,2027.7,2027.6,0.78893]
[1742434590537,1.324,2027.7,2027.6,1.46323]
[1742434591240,2.11289,2027.7,2027.6,2.13033]
[1742434591649,1.324,2027.7,2027.6,2.13033]
[1742434591942,3.34,2027.9,2027.8,0.78885]
[1742434592159,1.3148,2027.9,2027.8,0.78885]
[1742434592645,2.10361,2027.9,2027.8,0.78885]
[1742434592848,1.3148,2027.9,2027.8,0.78885]
[1742434593049,1.3148,2027.9,2027.8,2.19085]
[1742434593448,1.43514,2028.1,2028.0,0.78878]
[1742434593650,0.6464,2028.1,2028.0,0.78878]
[1742434594044,0.6464,2028.1,2027.7,44.14]
[1742434594246,1.43517,2028.1,2027.9,0.7888]